fUSD/lending_fUSD_20240612
["ID","MTS","AMOUNT","RATE_DAILY","PERIOD"]
[329241411,1718197837758,-500.0,0.00019178,2]
[329241412,1718197837769,-500.0,0.00019178,2]
[329241413,1718197837801,-506.18582017,0.00019178,2]
[329241414,1718197837816,-500.0,0.00019178,2]
[329241415,1718197837828,-500.0,0.00019178,2]
[329241416,1718197837840,-500.0,0.00019178,2]
[329241417,1718197837853,-500.0,0.00019178,2]
[329241418,1718197837863,-500.0,0.00019178,2]
[329241419,1718197837874,-500.0,0.00019178,2]
[329241420,1718197837885,-500.0,0.00019178,2]
[329241421,1718197837898,-490.37369179,0.00019178,2]
[329241422,1718197837909,-500.0,0.00019178,2]
[329241423,1718197837922,-500.0,0.00019178,2]
[329241424,1718197837933,-500.0,0.00019178,2]
[329241425,1718197837944,-500.0,0.00019178,2]
[329241426,1718197837955,-500.0,0.00019178,2]
[329241427,1718197837967,-500.0,0.00019178,2]
[329241428,1718197837978,-503.79479672,0.00019178,2]
[329241429,1718197837989,-500.0,0.00019178,2]
[329241430,1718197838001,-500.0,0.00019178,2]
[329241431,1718197838011,-500.0,0.00019178,2]
[329241432,1718197838022,-500.0,0.00019178,2]
[329241433,1718197838033,-500.0,0.00019178,2]
[329241434,1718197838045,-500.0,0.00019178,2]
[329241435,1718197838055,-500.0,0.00019178,2]
[329241436,1718197838068,-500.0,0.00019178,2]
[329241437,1718197838081,-509.35,0.00019178,2]
[329241438,1718197838093,-500.0,0.00019178,2]
[329241439,1718197838109,-500.0,0.00019178,2]
[329241440,1718197838123,-166.55443567,0.00019178,2]
[329241441,1718197838136,-500.0,0.00019178,2]
[329241442,1718197838148,-500.0,0.00019178,2]
[329241443,1718197838159,-500.0,0.00019178,2]
[329241444,1718197838170,-500.0,0.00019178,2]
[329241445,1718197838184,-513.94,0.00019178,2]
[329241446,1718197838197,-500.0,0.00019178,2]
[329241447,1718197838210,-500.0,0.00019178,2]
[329241448,1718197838221,-500.0,0.00019178,2]
[329241449,1718197838233,-506.83623281,0.00019178,2]
[329241450,1718197838244,-500.0,0.00019178,2]
[329241451,1718197838254,-509.67275753,0.00019178,2]
[329241452,1718197838265,-500.0,0.00019178,2]
[329241453,1718197838277,-500.0,0.00019178,2]
[329241454,1718197838288,-688.9,0.00019178,2]
[329241455,1718197838299,-500.0,0.00019178,2]
[329241456,1718197838310,-511.01454004,0.00019178,2]
[329241457,1718197838324,-505.0,0.00019178,2]
[329241458,1718197838334,-500.0,0.00019178,2]
[329241459,1718197838345,-507.22485399,0.00019178,2]
[329241460,1718197838356,-500.0,0.00019178,2]
[329241461,1718197838368,-500.0,0.00019178,2]
[329241462,1718197838381,-504.13257786,0.00019178,2]
[329241463,1718197838395,-500.0,0.00019178,2]
[329241464,1718197838408,-443.27655605,0.00019178,2]
[329241465,1718197838420,-500.0,0.00019178,2]
[329241466,1718197838431,-500.0,0.00019178,2]
[329241467,1718197838443,-500.0,0.00019178,2]
[329241468,1718197838454,-500.0,0.00019178,2]
[329241472,1718197838466,-500.0,0.00019178,2]
[329241474,1718197838477,-387.86394485,0.00019178,2]
[329241477,1718197838488,-500.61219495,0.00019178,2]
[329241480,1718197838499,-500.0,0.00019178,2]
[329241482,1718197838510,-500.0,0.00019178,2]
[329241484,1718197838523,-535.7,0.00019178,2]
[329241485,1718197838539,-306.83255171,0.00019178,2]
[329241487,1718197838551,-500.0,0.00019178,2]
[329241488,1718197838571,-611.1,0.00019178,2]
[329241489,1718197838582,-500.0,0.00019178,2]
[329241490,1718197838594,-500.0,0.00019178,2]
[329241491,1718197838609,-500.0,0.00019178,2]
[329241492,1718197838621,-1880.54,0.00019178,2]
[329241493,1718197838634,-152.523568,0.00019178,2]
[329241494,1718197838650,-500.0,0.00019178,2]
[329241495,1718197838661,-555.45292187,0.00019178,2]
[329241496,1718197838673,-500.0,0.00019178,2]
[329241497,1718197838684,-500.0,0.00019178,2]
[329241498,1718197838695,-500.0,0.00019178,2]
[329241499,1718197838706,-500.0,0.00019178,2]
[329241500,1718197838719,-500.0,0.00019178,2]
[329241501,1718197838730,-209.71,0.00019178,2]
[329241502,1718197838742,-500.0,0.00019178,2]
[329241503,1718197838754,-500.0,0.00019178,2]
[329241504,1718197838764,-500.0,0.00019178,2]
[329241505,1718197838793,-500.0,0.00019178,2]
[329241506,1718197838804,-500.0,0.00019178,2]
[329241507,1718197838817,-500.0,0.00019178,2]
[329241508,1718197838829,-1219.58,0.00019178,2]
[329241509,1718197838840,-501.0380308,0.00019178,2]
[329241510,1718197838852,-513.64,0.00019178,2]
[329241511,1718197838873,-500.0,0.00019178,2]
[329241512,1718197838886,-500.0,0.00019178,2]
[329241513,1718197838897,-3867.3552,0.00019215,2]
[329241514,1718197838908,-1102.23,0.00019314,2]
[329241515,1718197838921,-422.67068153,0.00019314,2]
[329241516,1718197838932,-500.0,0.00019314,2]
[329241517,1718197838942,-474.22751609,0.00019314,2]
[329241518,1718197838953,-500.0,0.00019315,2]
[329241519,1718197838964,-500.0,0.00019315,2]
[329241520,1718197838975,-533.6493456,0.00019315,2]
[329241521,1718197838985,-500.0,0.00019315,2]
[329241522,1718197838996,-500.0,0.00019315,2]
[329241523,1718197839007,-500.0,0.00019315,2]
[329241524,1718197839018,-500.0,0.00019315,2]
[329241525,1718197839029,-500.0,0.00019315,2]
[329241526,1718197839041,-302.3858616,0.00019315,2]
[329241527,1718197839053,-500.0,0.00019315,2]
[329241528,1718197839068,-500.0,0.00019315,2]
[329241529,1718197839080,-500.0,0.00019315,2]
[329241530,1718197839096,-500.0,0.00019315,2]
[329241531,1718197839107,-500.0,0.00019315,2]
[329241532,1718197839122,-500.0,0.00019315,2]
[329241533,1718197839134,-500.0,0.00019315,2]
[329241534,1718197839149,-500.0,0.00019315,2]
[329241535,1718197839161,-500.0,0.00019315,2]
[329241536,1718197839172,-500.0,0.00019315,2]
[329241537,1718197839183,-500.0,0.00019315,2]
[329241538,1718197839195,-578.37938508,0.00019315,2]
[329241539,1718197839206,-500.0,0.00019315,2]
[329241540,1718197839226,-763.1,0.00019315,2]
[329241541,1718197839237,-500.0,0.00019315,2]
[329241542,1718197839248,-500.0,0.00019315,2]
[329241543,1718197839260,-500.0,0.00019315,2]
[329241544,1718197839271,-500.0,0.00019315,2]
[329241545,1718197839283,-400.11306279,0.00019315,2]
[329241546,1718197839297,-500.0,0.00019315,2]
[329241547,1718197839309,-500.0,0.00019315,2]
[329241548,1718197839321,-500.0,0.00019315,2]
[329241549,1718197839332,-500.0,0.00019315,2]
[329241550,1718197839344,-500.0,0.00019315,2]
[329241551,1718197839355,-500.0,0.00019315,2]
[329241552,1718197839368,-500.0,0.00019315,2]
[329241553,1718197839379,-205.55501724,0.00019315,2]
[329241554,1718197839391,-500.0,0.00019315,2]
[329241555,1718197839407,-150.0,0.00019315,2]
[329241556,1718197839418,-508.1496925,0.00019315,2]
[329241557,1718197839434,-500.0,0.00019315,2]
[329241558,1718197839447,-642.13641057,0.00019315,2]
[329241559,1718197839458,-500.0,0.00019315,2]
[329241560,1718197839471,-500.0,0.00019315,2]
[329241561,1718197839482,-500.0,0.00019315,2]
[329241562,1718197839494,-155.23741689,0.00019315,2]
[329241563,1718197839505,-500.0,0.00019315,2]
[329241564,1718197839516,-319.73,0.00019315,2]
[329241565,1718197839530,-500.0,0.00019315,2]
[329241566,1718197839545,-500.0,0.00019315,2]
[329241567,1718197839557,-500.0,0.00019315,2]
[329241568,1718197839571,-500.0,0.00019315,2]
[329241569,1718197839582,-514.93131866,0.00019315,2]
[329241570,1718197839594,-500.0,0.00019315,2]
[329241571,1718197839605,-500.0,0.00019315,2]
[329241572,1718197839623,-500.0,0.00019315,2]
[329241573,1718197839634,-500.0,0.00019315,2]
[329241574,1718197839645,-500.0,0.00019315,2]
[329241575,1718197839660,-500.0,0.00019315,2]
[329241576,1718197839672,-500.0,0.00019315,2]
[329241577,1718197839683,-540.00086123,0.00019315,2]
[329241578,1718197839902,-82.42913877,0.00019315,2]
[329241579,1718197839915,-500.0,0.00019315,2]
[329241580,1718197839927,-500.0,0.00019315,2]
[329241581,1718197839939,-193.30648466,0.00019315,2]
[329241582,1718197839952,-293.34092058,0.00019315,2]
[329241583,1718197840392,-5902.46348,0.00017085,2]
[329241584,1718197840404,-1255.71,0.00018762,2]
[329241585,1718197840415,-500.0,0.00019178,2]
[329241586,1718197840427,-500.0,0.00019178,2]
[329241587,1718197840438,-13.35259476,0.00019315,2]
[329241588,1718197840449,-500.0,0.00019315,2]
[329241589,1718197840460,-500.0,0.00019315,2]
[329241590,1718197840526,-500.0,0.00019315,2]
[329241591,1718197840538,-500.0,0.00019315,2]
[329241592,1718197840549,-504.68064139,0.00019315,2]
[329241593,1718197840574,-500.0,0.00019315,2]
[329241594,1718197840587,-500.0,0.00019315,2]
[329241595,1718197840598,-500.0,0.00019315,2]
[329241596,1718197840609,-500.0,0.00019315,2]
[329241597,1718197840620,-500.0,0.00019315,2]
[329241598,1718197840631,-500.0,0.00019315,2]
[329241599,1718197840643,-500.0,0.00019315,2]
[329241600,1718197840654,-500.0,0.00019315,2]
[329241601,1718197840664,-500.0,0.00019315,2]
[329241602,1718197840675,-757.56,0.00019315,2]
[329241603,1718197840685,-242.2449,0.00019315,2]
[329241604,1718197840696,-508.69718059,0.00019315,14]
[329241605,1718197840707,-500.0,0.00019315,2]
[329241606,1718197840719,-500.0,0.00019315,2]
[329241607,1718197840730,-505.02900136,0.00019315,2]
[329241608,1718197840741,-467.21947646,0.00019315,2]
[329241609,1718197840754,-500.0,0.00019315,2]
[329241610,1718197840765,-225.22,0.00019315,2]
[329241611,1718197840794,-500.0,0.00019315,2]
[329241612,1718197840812,-500.0,0.00019315,2]
[329241613,1718197840829,-215.14,0.00019315,2]
[329241614,1718197840840,-500.0,0.00019315,2]
[329241615,1718197840851,-157.43,0.00019315,2]
[329241616,1718197840862,-500.0,0.00019315,2]
[329241617,1718197840872,-500.0,0.00019315,2]
[329241618,1718197840884,-500.0,0.00019315,2]
[329241619,1718197840897,-500.0,0.00019315,2]
[329241620,1718197840908,-500.0,0.00019315,2]
[329241621,1718197840918,-500.0,0.00019315,2]
[329241622,1718197840929,-500.0,0.00019315,2]
[329241623,1718197840940,-500.0,0.00019315,2]
[329241624,1718197840951,-500.0,0.00019315,2]
[329241625,1718197840962,-500.0,0.00019315,2]
[329241626,1718197840972,-500.0,0.00019315,2]
[329241627,1718197840983,-372.84,0.00019315,2]
[329241628,1718197840993,-500.0,0.00019315,2]
[329241629,1718197841003,-500.0,0.00019315,2]
[329241630,1718197841014,-500.0,0.00019315,2]
[329241631,1718197841024,-539.5,0.00019315,2]
[329241632,1718197841035,-500.0,0.00019315,2]
[329241633,1718197841047,-500.0,0.00019315,2]
[329241634,1718197841058,-500.0,0.00019315,2]
[329241635,1718197841071,-518.16,0.00019315,2]
[329241636,1718197841081,-500.0,0.00019315,2]
[329241637,1718197841096,-500.0,0.00019315,2]
[329241638,1718197841106,-500.0,0.00019315,2]
[329241639,1718197841118,-500.0,0.00019315,2]
[329241640,1718197841128,-500.0,0.00019315,2]
[329241641,1718197841141,-500.0,0.00019315,2]
[329241642,1718197841151,-500.0,0.00019315,2]
[329241643,1718197841162,-500.0,0.00019315,2]
[329241644,1718197841177,-500.0,0.00019315,2]
[329241645,1718197841188,-500.0,0.00019315,2]
[329241646,1718197841198,-500.0,0.00019315,2]
[329241647,1718197841208,-525.52,0.00019315,2]
[329241648,1718197841220,-500.0,0.00019315,2]
[329241649,1718197841230,-500.0,0.00019315,2]
[329241650,1718197841241,-500.0,0.00019315,2]
[329241651,1718197841252,-509.0376282,0.00019315,2]
[329241652,1718197841263,-500.0,0.00019315,2]
[329241653,1718197841274,-500.0,0.00019315,2]
[329241654,1718197841284,-378.41592655,0.00019315,2]
[329241655,1718197841295,-637.0771954,0.00019315,2]
[329241656,1718197841307,-500.0,0.00019315,2]
[329241657,1718197841319,-500.0,0.00019315,2]
[329241658,1718197841330,-500.0,0.00019315,2]
[329241659,1718197841341,-500.0,0.00019315,2]
[329241660,1718197841351,-500.0,0.00019315,2]
[329241661,1718197841362,-507.21076286,0.00019315,2]
[329241662,1718197841373,-500.0,0.00019315,2]
[329241663,1718197841384,-506.99640169,0.00019315,2]
[329241664,1718197841395,-500.0,0.00019315,2]
[329241665,1718197841405,-500.0,0.00019315,2]
[329241666,1718197841416,-500.0,0.00019315,2]
[329241667,1718197841426,-500.0,0.00019315,2]
[329241668,1718197841437,-500.0,0.00019315,2]
[329241669,1718197841447,-500.0,0.00019315,2]
[329241670,1718197841458,-768.12,0.00019315,2]
[329241671,1718197841468,-519.16698308,0.00019315,2]
[329241672,1718197841479,-500.0,0.00019315,2]
[329241673,1718197841489,-510.03204715,0.00019315,2]
[329241674,1718197841500,-500.0,0.00019315,2]
[329241675,1718197841510,-509.37177999,0.00019315,2]
[329241676,1718197841523,-508.00616376,0.00019315,2]
[329241677,1718197841535,-500.0,0.00019315,2]
[329241678,1718197841546,-500.0,0.00019315,2]
[329241679,1718197841558,-500.0,0.00019315,2]
[329241680,1718197841573,-500.0,0.00019315,2]
[329241681,1718197841585,-500.0,0.00019315,2]
[329241682,1718197841597,-500.0,0.00019315,2]
[329241683,1718197841608,-428.79,0.00019315,2]
[329241684,1718197841619,-500.0,0.00019315,2]
[329241685,1718197841630,-363.70711612,0.00019315,2]
[329241686,1718197841641,-500.0,0.00019315,2]
[329241687,1718197841652,-508.98172607,0.00019315,2]
[329241688,1718197841663,-443.45,0.00019315,2]
[329241689,1718197841674,-500.0,0.00019315,2]
[329241690,1718197841685,-509.16282362,0.00019315,2]
[329241691,1718197841697,-438.76,0.00019315,2]
[329241692,1718197841708,-334.66190313,0.00019315,2]
[329241693,1718197841719,-255.31,0.00019315,2]
[329241694,1718197841730,-589.28,0.00019315,2]
[329241695,1718197841742,-500.0,0.00019315,2]
[329241696,1718197841752,-500.0,0.00019315,2]
[329241697,1718197841763,-500.0,0.00019315,2]
[329241698,1718197841784,-500.0,0.00019315,2]
[329241699,1718197841800,-500.0,0.00019315,2]
[329241700,1718197841811,-500.0,0.00019315,2]
[329241701,1718197841827,-500.0,0.00019315,2]
[329241702,1718197841840,-476.47255224,0.00019315,2]
[329241703,1718197841851,-606.07,0.00019315,2]
[329241704,1718197841864,-500.0,0.00019315,2]
[329241705,1718197841877,-500.0,0.00019315,2]
[329241706,1718197841888,-500.0,0.00019315,2]
[329241707,1718197841899,-375.68,0.00019315,2]
[329241708,1718197841911,-500.0,0.00019315,2]
[329241709,1718197841923,-500.0,0.00019315,2]
[329241710,1718197841933,-497.86624503,0.00019315,2]
[329241711,1718197841944,-500.0,0.00019315,2]
[329241712,1718197841955,-500.0,0.00019315,2]
[329241713,1718197841966,-508.98,0.00019315,2]
[329241714,1718197841977,-365.74,0.00019315,2]
[329241715,1718197841987,-500.0,0.00019315,2]
[329241716,1718197841998,-500.0,0.00019315,2]
[329241717,1718197842009,-527.1089148,0.00019315,2]
[329241718,1718197842020,-502.89697178,0.00019315,2]
[329241719,1718197842031,-500.0,0.00019315,2]
[329241720,1718197842042,-509.35,0.00019315,2]
[329241721,1718197842053,-500.0,0.00019315,2]
[329241722,1718197842065,-500.0,0.00019315,2]
[329241723,1718197842078,-500.0,0.00019315,2]
[329241724,1718197842091,-500.0,0.00019315,2]
[329241725,1718197842102,-500.0,0.00019315,2]
[329241726,1718197842115,-500.0,0.00019315,2]
[329241727,1718197842126,-513.94,0.00019315,2]
[329241728,1718197842138,-500.0,0.00019315,2]
[329241729,1718197842148,-500.0,0.00019315,2]
[329241730,1718197842159,-500.0,0.00019315,2]
[329241731,1718197842170,-500.0,0.00019315,2]
[329241732,1718197842181,-500.0,0.00019315,2]
[329241733,1718197842193,-688.9,0.00019315,2]
[329241734,1718197842205,-500.0,0.00019315,2]
[329241735,1718197842218,-500.0,0.00019315,2]
[329241736,1718197842228,-500.0,0.00019315,2]
[329241737,1718197842239,-500.0,0.00019315,2]
[329241738,1718197842253,-503.39023287,0.00019315,2]
[329241739,1718197842264,-500.0,0.00019315,2]
[329241740,1718197842275,-500.0,0.00019315,2]
[329241741,1718197842287,-500.0,0.00019315,2]
[329241742,1718197842298,-500.0,0.00019315,2]
[329241743,1718197842309,-500.0,0.00019315,2]
[329241744,1718197842322,-500.0,0.00019315,2]
[329241745,1718197842335,-535.7,0.00019315,2]
[329241746,1718197842346,-500.0,0.00019315,2]
[329241747,1718197842357,-500.0,0.00019315,2]
[329241748,1718197842368,-500.0,0.00019315,2]
[329241749,1718197842383,-500.0,0.00019315,2]
[329241750,1718197842396,-1880.54,0.00019315,2]
[329241752,1718197842408,-230.92,0.00019315,2]
[329241754,1718197842420,-500.0,0.00019315,2]
[329241756,1718197842435,-366.0899276,0.00019315,2]
[329241757,1718197842446,-328.61247349,0.00019315,2]
[329241758,1718197842458,-560.21943682,0.00019315,2]
[329241759,1718197842471,-500.0,0.00019315,2]
[329241760,1718197842483,-1219.58,0.00019315,2]
[329241761,1718197842495,-513.64,0.00019315,2]
[329241762,1718197842509,-500.0,0.00019315,2]
[329241763,1718197842521,-500.0,0.00019315,2]
[329241764,1718197842533,-500.0,0.00019315,2]
[329241765,1718197842545,-500.0,0.00019452,2]
[329241766,1718197842556,-500.0,0.00019452,2]
[329241767,1718197842571,-370.09086023,0.00019452,2]
[329241768,1718197842582,-500.0,0.00019452,2]
[329241769,1718197842592,-272.4,0.00019452,2]
[329241770,1718197842603,-500.0,0.00019452,2]
[329241771,1718197842614,-500.0,0.00019452,2]
[329241772,1718197842625,-500.0,0.00019452,2]
[329241773,1718197842637,-500.0,0.00019452,2]
[329241774,1718197842648,-500.0,0.00019452,2]
[329241775,1718197842660,-500.0,0.00019452,2]
[329241776,1718197842673,-500.0,0.00019452,2]
[329241777,1718197842684,-500.0,0.00019452,2]
[329241778,1718197842696,-221.77542531,0.00019452,2]
[329241779,1718197842709,-763.1,0.00019452,2]
[329241780,1718197842720,-500.0,0.00019452,2]
[329241781,1718197842732,-500.0,0.00019452,2]
[329241782,1718197842744,-500.0,0.00019452,2]
[329241783,1718197842775,-500.0,0.00019452,2]
[329241784,1718197842791,-500.0,0.00019452,2]
[329241785,1718197842802,-487.92239866,0.00019452,2]
[329241786,1718197842814,-500.0,0.00019452,2]
[329241787,1718197842826,-500.0,0.00019452,2]
[329241788,1718197842838,-500.0,0.00019452,2]
[329241789,1718197842849,-500.0,0.00019452,2]
[329241790,1718197842861,-500.0,0.00019452,2]
[329241791,1718197842873,-500.0,0.00019452,2]
[329241792,1718197842889,-150.0,0.00019452,2]
[329241793,1718197842900,-500.0,0.00019452,2]
[329241794,1718197842912,-500.0,0.00019452,2]
[329241795,1718197842923,-382.31,0.00019452,2]
[329241796,1718197842934,-432.12,0.00019452,2]
[329241797,1718197842948,-500.0,0.00019452,2]
[329241798,1718197842961,-500.0,0.00019452,2]
[329241799,1718197842972,-500.0,0.00019452,2]
[329241800,1718197842983,-500.0,0.00019452,2]
[329241801,1718197843001,-500.0,0.00019452,2]
[329241802,1718197843015,-500.0,0.00019452,2]
[329241803,1718197843027,-500.0,0.00019452,2]
[329241804,1718197843042,-500.0,0.00019452,2]
[329241805,1718197843058,-500.0,0.00019452,2]
[329241806,1718197843074,-500.0,0.00019452,2]
[329241807,1718197843106,-156.5,0.00019452,2]
[329241808,1718197843121,-500.0,0.00019452,2]
[329241809,1718197843134,-622.43,0.00019452,2]
[329241810,1718197843149,-500.0,0.00019452,2]
[329241811,1718197843163,-500.0,0.00019452,2]
[329241812,1718197843177,-500.0,0.00019452,2]
[329241813,1718197843191,-500.0,0.00019452,2]
[329241814,1718197843204,-592.86868101,0.00019452,2]
[329241815,1718197843219,-500.0,0.00019452,2]
[329241816,1718197843233,-500.0,0.00019452,2]
[329241817,1718197843247,-500.0,0.00019452,2]
[329241818,1718197843261,-500.0,0.00019452,2]
[329241819,1718197843274,-500.0,0.00019452,2]
[329241820,1718197843287,-500.0,0.00019452,2]
[329241821,1718197843298,-505.57181642,0.00019452,2]
[329241822,1718197843310,-500.0,0.00019452,2]
[329241823,1718197843323,-500.0,0.00019452,2]
[329241824,1718197843336,-333.52756425,0.00019452,2]
[329241825,1718197843349,-757.56,0.00019452,2]
[329241826,1718197843361,-500.0,0.00019452,2]
[329241827,1718197843374,-543.15420443,0.00019452,2]
[329241828,1718197843387,-500.0,0.00019452,2]
[329241829,1718197843399,-500.0,0.00019452,2]
[329241830,1718197843412,-500.0,0.00019452,2]
[329241831,1718197843426,-500.0,0.00019452,2]
[329241832,1718197843439,-500.0,0.00019452,2]
[329241833,1718197843454,-500.0,0.00019452,2]
[329241834,1718197843467,-500.0,0.00019452,2]
[329241835,1718197843479,-500.0,0.00019452,2]
[329241836,1718197843494,-500.0,0.00019452,2]
[329241838,1718197843509,-500.0,0.00019452,2]
[329241840,1718197843523,-500.0,0.00019452,2]
[329241842,1718197843536,-500.0,0.00019452,2]
[329241844,1718197843550,-376.3429709,0.00019452,2]
[329241845,1718197843568,-500.0,0.00019452,2]
[329241846,1718197843581,-500.0,0.00019452,2]
[329241847,1718197843595,-500.0,0.00019452,2]
[329241848,1718197843609,-500.0,0.00019452,2]
[329241849,1718197843627,-539.5,0.00019452,2]
[329241850,1718197843643,-500.0,0.00019452,2]
[329241851,1718197843658,-500.0,0.00019452,2]
[329241852,1718197843671,-500.0,0.00019452,2]
[329241853,1718197843685,-518.16,0.00019452,2]
[329241854,1718197843698,-500.0,0.00019452,2]
[329241855,1718197843711,-183.6598415,0.00019452,2]
[329241856,1718197843725,-500.0,0.00019452,2]
[329241857,1718197843738,-517.18457594,0.00019452,2]
[329241858,1718197843752,-251.91155075,0.00019452,2]
[329241862,1718197844329,-500.0,0.00019178,2]
[329241863,1718197844341,-547.78104725,0.00019178,2]
[329241864,1718197844353,-500.0,0.00019315,2]
[329241865,1718197844367,-260.33010878,0.00019452,2]
[329241866,1718197844380,-609.98077691,0.00019452,2]
[329241867,1718197844393,-500.0,0.00019452,2]
[329241868,1718197844407,-500.0,0.00019452,2]
[329241869,1718197844419,-234.04776698,0.00019452,2]
[329241870,1718197844435,-265.95223302,0.00019452,2]
[329241871,1718197844448,-500.0,0.00019452,2]
[329241872,1718197844461,-525.52,0.00019452,2]
[329241873,1718197844477,-500.0,0.00019452,2]
[329241874,1718197844489,-580.21,0.00019452,2]
[329241875,1718197844501,-500.0,0.00019452,2]
[329241876,1718197844513,-500.0,0.00019452,2]
[329241877,1718197844526,-450.70276698,0.00019452,2]
[329241878,1718197844541,-49.29723302,0.00019452,2]
[329241879,1718197844554,-500.0,0.00019452,2]
[329241880,1718197844569,-500.0,0.00019452,2]
[329241881,1718197844590,-209.14498638,0.00019452,2]
[329241882,1718197844674,-500.0,0.00019178,2]
[329241883,1718197844686,-290.85501362,0.00019452,2]
[329241884,1718197844697,-536.17,0.00019452,2]
[329241885,1718197844709,-489.55,0.00019452,2]
[329241886,1718197844721,-272.06,0.00019452,2]
[329241887,1718197844732,-496.28501833,0.00019452,2]
[329241888,1718197844746,-3.71498167,0.00019452,2]
[329241889,1718197844757,-542.55,0.00019452,2]
[329241890,1718197844768,-500.0,0.00019452,2]
[329241891,1718197844794,-500.0,0.00019452,2]
[329241892,1718197844806,-500.0,0.00019452,2]
[329241893,1718197844818,-510.51869062,0.00019452,2]
[329241894,1718197844830,-768.12,0.00019452,2]
[329241895,1718197844842,-500.0,0.00019452,2]
[329241896,1718197844853,-573.78785854,0.00019452,2]
[329241897,1718197844871,-500.0,0.00019452,2]
[329241898,1718197844883,-500.0,0.00019452,2]
[329241899,1718197844895,-500.0,0.00019452,2]
[329241900,1718197844906,-500.0,0.00019452,2]
[329241901,1718197844918,-500.0,0.00019452,2]
[329241902,1718197844929,-500.0,0.00019452,2]
[329241903,1718197844942,-500.0,0.00019452,2]
[329241904,1718197844953,-500.0,0.00019452,2]
[329241905,1718197844966,-511.34209357,0.00019452,2]
[329241906,1718197844978,-525.21442169,0.00019452,2]
[329241907,1718197844990,-307.98,0.00019452,2]
[329241908,1718197845002,-500.0,0.00019452,2]
[329241909,1718197845015,-500.0,0.00019452,2]
[329241910,1718197845027,-500.0,0.00019452,2]
[329241911,1718197845041,-500.0,0.00019452,2]
[329241912,1718197845053,-500.0,0.00019452,2]
[329241913,1718197845070,-500.0,0.00019452,2]
[329241914,1718197845085,-500.0,0.00019452,2]
[329241915,1718197845101,-307.94909038,0.00019452,2]
[329241916,1718197845113,-500.0,0.00019452,2]
[329241917,1718197845127,-500.0,0.00019452,2]
[329241918,1718197845141,-500.0,0.00019452,2]
[329241919,1718197845154,-500.0,0.00019452,2]
[329241920,1718197845168,-500.0,0.00019452,2]
[329241921,1718197845182,-509.35,0.00019452,2]
[329241922,1718197845196,-500.0,0.00019452,2]
[329241923,1718197845209,-481.15419263,0.00019452,2]
[329241924,1718197845221,-500.0,0.00019452,2]
[329241925,1718197845234,-500.0,0.00019452,2]
[329241926,1718197845248,-500.0,0.00019452,2]
[329241927,1718197845258,-500.0,0.00019452,2]
[329241928,1718197845269,-513.94,0.00019452,2]
[329241929,1718197845279,-500.0,0.00019452,2]
[329241930,1718197845290,-500.0,0.00019452,2]
[329241931,1718197845300,-500.0,0.00019452,2]